Cogmind - Beta 13 @@@ ROGUE MODE // 2024.06.04 @ 19:05:29 Player: admiral_len Result: Destroyed by H-61 Shepherd with Heavy Assault Cannon Performance ------------- Evolutions (2) 1000 Regions Visited (3) 600 Robots Destroyed (45) 225 Value Destroyed (1408) 1408 Prototype IDs (3) 60 Alien Tech Used (0) 0 Bonus (27) 27 TOTAL SCORE: 3320 Bonus ------- High Alert Combat Kills 27 Cogmind --------- Core Integrity 0/550 Matter 295/300 Energy 99/100 System Corruption 0% Temperature Cool (0) Movement Core (250) Ox4 Location -8/Materials Parts ------- > --- POWER (1) -------- (None) > --- PROPULSION (4) --- (None) > --- UTILITY (4) ------ Medium Storage Unit Utility Shielding > --- WEAPON (2) ------- Heavy Mace > --- INVENTORY (10) --- Improved Ion Engine Deuterium Engine Light Deuterium Engine Light Treads Assault Rifle Assault Rifle Grenade Launcher Heavy Mace Peak State ------------ > --- POWER ------------ Cooled Ion Engine > --- PROPULSION ------- Improved Treads Improved Treads Improved Treads Improved Treads > --- UTILITY ---------- Medium Storage Unit Utility Shielding Light Armor Plating Light Armor Plating > --- WEAPON ----------- Heavy Assault Rifle Heavy Mace > --- INVENTORY -------- Improved Ion Engine Cooled Ion Engine Light Deuterium Engine Light Treads Assault Rifle Assault Rifle Heavy Assault Rifle Grenade Launcher Heavy Mace [Rating: 21] Favorites ----------- Power Ion Engine Engine Ion Engine Propulsion Light Treads Treads Light Treads Wheel Armored Wheel Utility Medium Storage Unit Device Heat Sink Storage Medium Storage Unit Processor Improved Targeting Computer Protection Light Armor Plating Weapon EM Pulse Gun Energy Gun EM Pulse Gun Ballistic Gun Heavy Assault Rifle Ballistic Cannon Light Cannon Impact Weapon Heavy Mace Build | -11 -10 -9 -8 ------- Run | Yrd Mat Mat Mat Slots Evolved 4 | . . 2 2 Power . | . . . . Propulsion 2 | . . . 2 Utility 2 | . . 2 . Weapon . | . . . . Parts Attached 43 | 6 7 24 6 Power 5 | 1 1 3 . Engine 5 | 1 1 3 . Core . | . . . . Reactor . | . . . . Propulsion 12 | 2 . 7 3 Treads 8 | 2 . 3 3 Leg . | . . . . Wheel 4 | . . 4 . Hover . | . . . . Flight . | . . . . Utility 12 | 1 4 7 . Device 2 | . 1 1 . Storage 4 | 1 2 1 . Processor 1 | . 1 . . Hackware . | . . . . Protection 5 | . . 5 . Artifact . | . . . . Weapon 14 | 2 2 7 3 Energy Gun 6 | 2 . 4 . Energy Cannon . | . . . . Ballistic Gun 5 | . 1 3 1 Ballistic Cannon 1 | . 1 . . Launcher . | . . . . Special Weapon . | . . . . Impact Weapon 2 | . . . 2 Slashing Weapon . | . . . . Piercing Weapon . | . . . . Special Melee Weapon . | . . . . Unidentified Prototypes . | . . . . Parts Lost 15 | . . 6 9 Power 3 | . . 2 1 Propulsion 5 | . . 1 4 Utility 4 | . . 2 2 Weapon 3 | . . 1 2 Highest Loss Streak 5 | . . 3 5 To Critical Strikes . | . . . . Average Slot Usage (%) 93 | . 96 91 87 Engine 12 | . 14 10 8 Treads 20 | . 28 11 30 Wheel 4 | . . 10 . Device 3 | . 6 2 . Storage 12 | . 14 11 9 Processor 6 | . 4 10 . Protection 8 | . . 13 21 Energy Gun 10 | . 15 7 . Ballistic Gun 8 | . 5 10 9 Ballistic Cannon 4 | . 7 2 . Naked Turns . | . . . . Heaviest Build 49 | 14 47 49 31 Greatest Support 92 | 40 40 46 92 Greatest Overweight (x) 8 | . 1 8 8 Average Overweight (x) . | . . . . Largest Inventory Capacity 20 | 8 20 20 10 Average Capacity 11 | 7 11 11 10 Most Carried 10 | 4 6 10 10 Average Carried 4 | 1 2 6 7 Final Capacity 20 | 8 20 10 10 Final Carried 8 | 1 4 8 8 Class Distribution -------------------- 100% | Mutant Dominant Class ---------------- Mutant | -10/Materials Mutant | -9/Materials Mutant | -8/Materials Resources | -11 -10 -9 -8 ----------- Run | Yrd Mat Mat Mat Matter Collected 1012 | 193 220 475 124 Remotely . | . . . . Salvage Created 1847 | . 193 1365 289 Parts 101 | . 13 77 11 Haulers Intercepted . | . . . . Recyclers Shooed . | . . . . Parts Field Recycled . | . . . . Retrieved Matter . | . . . . Parts Self-Destructed . | . . . . Prevented . | . . . . Kills | -11 -10 -9 -8 ------- Run | Yrd Mat Mat Mat Combat Hostiles Destroyed 37 | . 6 25 6 Melee 1 | . . . 1 Guns 28 | . 3 21 4 Cannons 7 | . 3 4 . Classes Destroyed 8 | . 3 5 . Worker 2 | . . 2 . Recycler 2 | . . 2 . Operator 1 | . 1 . . Watcher 3 | . . 3 . Swarmer 5 | . 2 3 . Grunt 20 | . 4 12 4 Brawler 2 | . . 1 1 Sentry 10 | . . 9 1 Best Kill Streak 5 | . 2 5 3 Combat Bots Only 3 | . 2 3 3 Max Kills in Single Turn 1 | . 1 1 1 Gunslinging . | . . . . Exploded . | . . . . Melee 1 | . . . 1 Uniques/NPCs Destroyed . | . . . . Combat | -11 -10 -9 -8 -------- Run | Yrd Mat Mat Mat Hostile Shots Fired 284 | . 41 148 95 Missed 66 | . 10 34 22 Damage Taken 3375 | . 311 1264 1800 Core 798 | . 53 185 560 Absorbed by Shields 119 | . . 119 . Redirected to Shielding 46 | . . 8 38 Core Remaining (%) 77 | 100 78 53 . Volleys Fired 151 | . 26 105 20 Largest 2 | . 2 2 2 Hottest 96 | . 90 96 46 Shots Fired 256 | . 52 174 30 Gun 220 | . 34 156 30 Cannon 36 | . 18 18 . Launcher . | . . . . Special . | . . . . Kinetic 176 | . 29 117 30 Thermal 59 | . 8 51 . Explosive . | . . . . Electromagnetic 21 | . 15 6 . Robot Hit Streak 29 | . 5 29 10 Robot Miss Streak 5 | . 3 5 2 Penetration Max . | . . . . Secondary Targets 5 | . . 3 2 Max Gunslinging Chain 1 | . . 1 1 Shots Hit Robots 199 | . 26 131 42 Core Hits 74 | . 9 54 11 Critical Kills 1 | . . . 1 Critical Parts Destroyed 1 | . . . 1 Critical Strikes 8 | . 2 4 2 Burn 5 | . 2 3 . Blast 1 | . . 1 . Smash 2 | . . . 2 Melee Attacks 25 | . . . 25 Impact 25 | . . . 25 Slashing . | . . . . Piercing . | . . . . Sneak Attacks . | . . . . Combat Hostiles . | . . . . Follow-up Attacks 3 | . . . 3 Damage Inflicted 2981 | . 402 1701 878 Guns 1992 | . 216 1464 312 Cannons 423 | . 186 237 . Explosions . | . . . . Melee 566 | . . . 566 Ramming . | . . . . Kinetic 1577 | . 217 1048 312 Thermal 671 | . 88 583 . Explosive . | . . . . Electromagnetic 167 | . 97 70 . Impact 566 | . . . 566 Slashing . | . . . . Piercing . | . . . . Highest Corruption 2 | . . 2 . Average Corruption 2 | . . 2 . Corruption Purged . | . . . . Corruption Blocked . | . . . . Overload Shots . | . . . . Overflow Damage 68 | . . . 68 Projectiles . | . . . . Explosions . | . . . . Melee 68 | . . . 68 Knockbacks 5 | . 2 1 2 Impact 2 | . . . 2 Kinetic 3 | . 2 1 . Secondary . | . . . . Self-Inflicted Damage . | . . . . Shots . | . . . . Rammed . | . . . . Targets Rammed . | . . . . Kicked . | . . . . Crushed . | . . . . Highest Temperature 256 | . 230 256 2 Average Temperature 53 | . 98 46 2 Received Heat Transfer 952 | . 120 535 297 Siege Activations . | . . . . Robots Corrupted . | . . . . Combat Hostiles . | . . . . Parts Fried 2 | . . . 2 Impact Corruptions 4 | . . . 4 Robots Melted . | . . . . Combat Hostiles . | . . . . Parts Melted 2 | . . 2 . Heat Transferred 2072 | . 407 1665 . Parts Sabotaged . | . . . . Parts Stolen . | . . . . Parts Stripped . | . . . . Power Chain Reactions . | . . . . Alert | -11 -10 -9 -8 ------- Run | Yrd Mat Mat Mat Peak Influence 470 | . 135 470 307 Initial 162 | . . 17 162 Average 127 | . 37 207 233 Maximum Alert Level 2 | . . 2 1 Low Security (%) 73 | 100 100 55 22 Level 1 22 | . . 36 77 Level 2 3 | . . 8 . Level 3 . | . . . . Level 4 . | . . . . Level 5 . | . . . . High Security . | . . . . Max Security . | . . . . Squads Dispatched 6 | . 3 2 1 Investigation 2 | . 1 1 . Extermination . | . . . . Reinforcement 4 | . 2 1 1 Assault . | . . . . Garrison . | . . . . Intercept . | . . . . Searches Triggered . | . . . . Construction Impeded . | . . . . Haulers Reinforced . | . . . . Active Scanning Responses . | . . . . Cargo Convoy Interrupts . | . . . . Stealth | -11 -10 -9 -8 --------- Run | Yrd Mat Mat Mat Distress Signals 4 | . . 3 1 Communications Jammed . | . . . . Distress Signals . | . . . . Times Spotted 64 | . 19 35 10 Peak Tracking Total 4 | . 3 4 4 Tactical Retreats 1 | . . 1 . Traps | -11 -10 -9 -8 ------- Run | Yrd Mat Mat Mat Traps Triggered 2 | . . 2 . Indirectly . | . . . . Trap Hack Attempts . | . . . . Triggered . | . . . . Disarmed . | . . . . Reprogrammed . | . . . . Reused . | . . . . Traps Extracted . | . . . . Installed . | . . . . Triggered . | . . . . Machines | -11 -10 -9 -8 ---------- Run | Yrd Mat Mat Mat Machines Disabled . | . . . . Max in Single Turn . | . . . . Machines Repaired . | . . . . Machines Dismantled . | . . . . Machines Sabotaged . | . . . . Overloaded Fab Kills . | . . . . Hacking | -11 -10 -9 -8 --------- Run | Yrd Mat Mat Mat Machines Accessed 2 | . 1 . 1 Terminals 2 | . 1 . 1 Fabricators . | . . . . Repair Stations . | . . . . Recycling Units . | . . . . Scanalyzers . | . . . . Garrison Access . | . . . . Total Hacks 3 | . 2 . 1 Successful 2 | . 1 . 1 Failed 1 | . 1 . . Catastrophic 1 | . 1 . . Database Lockouts . | . . . . Manual . | . . . . Terminals 3 | . 2 . 1 Fabricators . | . . . . Repair Stations . | . . . . Recycling Units . | . . . . Scanalyzers . | . . . . Garrison Access . | . . . . Terminal Hacks 2 | . 1 . 1 Record 1 | . . . 1 Prototype ID Bank 1 | . 1 . . Fabricator Hacks . | . . . . Repair Station Hacks . | . . . . Recycling Unit Hacks . | . . . . Scanalyzer . | . . . . Garrison Access Hacks . | . . . . Unauthorized Hacks . | . . . . Terminals . | . . . . Fabricators . | . . . . Repair Stations . | . . . . Recycling Units . | . . . . Scanalyzers . | . . . . Garrison Access . | . . . . Data Cores Recovered . | . . . . Used . | . . . . Hacking Detections 2 | . 1 . 1 Full Trace Events 1 | . 1 . . Feedback Events . | . . . . Feedback Blocked . | . . . . Robot Schematics Acquired . | . . . . Robots Built . | . . . . Authchips . | . . . . Time . | . . . . Total Robot Build Rating . | . . . . Part Schematics Acquired . | . . . . Parts Built . | . . . . Authchips . | . . . . Time . | . . . . Total Part Build Rating . | . . . . Parts Repaired . | . . . . Time . | . . . . Parts Recycled . | . . . . Recycled Matter . | . . . . Retrieved Matter . | . . . . Retrieved Components . | . . . . Parts Scanalyzed . | . . . . Part Schematics Acquired . | . . . . Parts Damaged . | . . . . Bothacking | -11 -10 -9 -8 ------------ Run | Yrd Mat Mat Mat Used RIF Installer . | . . . . Robots Hacked . | . . . . Non-combat . | . . . . Combat . | . . . . Robot Hacks Applied . | . . . . Relay Couplers Released . | . . . . Fabnet Peak Effective % . | . . . . Robots Rewired . | . . . . Allies Hacked . | . . . . Hacks Repelled . | . . . . Allies | -11 -10 -9 -8 -------- Run | Yrd Mat Mat Mat Total Allies . | . . . . Largest Group . | . . . . Highest-Rated Group . | . . . . Highest-Rated Ally . | . . . . Total Orders . | . . . . Ally Attacks . | . . . . Total Damage . | . . . . Kills . | . . . . Allies Corrupted . | . . . . Allies Melted . | . . . . Intel | -11 -10 -9 -8 ------- Run | Yrd Mat Mat Mat Robot Analysis Total . | . . . . Derelict Logs Recovered . | . . . . Drone Launches . | . . . . Drone Recoveries . | . . . . Exploration | -11 -10 -9 -8 ------------- Run | Yrd Mat Mat Mat Turns Passed 3689 | 238 1486 1636 329 Spaces Moved 1662 | 56 714 770 122 Core 16 | 8 . 2 6 Treads 1219 | 48 714 341 116 Legs . | . . . . Wheels 427 | . . 427 . Hover . | . . . . Flight . | . . . . Fastest Speed 50 | 50 160 80 160 Average Speed 153 | 144 172 134 167 Slowest Speed 450 | 160 240 450 450 Overloaded Moves . | . . . . Propulsion Burnouts . | . . . . Robots Hopped . | . . . . Cave-ins Triggered . | . . . . Exploration Rate (%) 50 | 9 98 80 13 Regions Visited 3 Branch Regions . Pre-discovered Areas . | . . . . Known Exits Taken . | . . . . Unknown Exits Taken 3 | 1 1 1 . Scrap Searched . | . . . . Spaces Dug . | . . . . Terrain Destroyed . | . . . . Melee . | . . . . Projectile . | . . . . AOE . | . . . . Terrain Rammed . | . . . . Walls Destroyed . | . . . . Machines Disabled . | . . . . Actions | -11 -10 -9 -8 --------- Run | Yrd Mat Mat Mat Total 2535 | 213 925 1217 180 Wait 575 | 145 163 266 1 Move 1659 | 55 713 769 122 Hop . | . . . . Pick Up 55 | 7 10 32 6 Fast Attach 1 | . . 1 . Attach 39 | 6 7 21 5 Detach 1 | . . . 1 Swap 3 | . . 2 1 Drop 29 | . 6 21 2 Fire 151 | . 26 105 20 Melee 22 | . . . 22 Ram . | . . . . Kick . | . . . . Crush . | . . . . Escape Stasis . | . . . . Rewire . | . . . . Trap . | . . . . Miscellaneous . | . . . . Route ------- -11/Scrapyard -10/Materials (discovered 4 exits: *Mat x3 / [*Min]) -9/Materials (discovered 5 exits: *Mat x3 / [*Min x2]) -8/Materials History --------- Turn | Location | Event 7 | -11/Scrapyard | Discovered new exit (range 15) 239 | -11/Scrapyard | Entered Materials 316 | -10/Materials | Build established: Mutant 992 | -10/Materials | Discovered new exit (range 10) 1008 | -10/Materials | Discovered new exit (range 15) 1245 | -10/Materials | Discovered new exit (range 6) 1397 | -10/Materials | Discovered new exit (range 3) 1725 | -10/Materials | Entered another Materials area 1725 | -9/Materials | Evolved 2 slots: Utility x2 1728 | -9/Materials | Discovered new exit (range 13) 2171 | -9/Materials | Lost 3 parts (1p1u1w) 2401 | -9/Materials | Discovered new exit (range 14) 2833 | -9/Materials | Discovered new exit (range 16) 3007 | -9/Materials | Discovered new exit (range 12) 3294 | -9/Materials | Discovered new exit (range 15) 3361 | -9/Materials | Entered another Materials area 3361 | -8/Materials | Evolved 2 slots: Propulsion x2 3639 | -8/Materials | Lost 4 parts (1n2u1w) 3669 | -8/Materials | Core integrity fell below 50% 3685 | -8/Materials | Core integrity fell below 20% 3690 | -8/Materials | Destroyed by H-61 Shepherd with Heavy Assault Cannon Last Messages --------------- Imp. Treads destroyed. K-01 Serf collects debris. Lgt. Treads destroyed. Knocked back. K-01 Serf collects debris. Penetrated by Slug. Knocked back. K-01 Serf collects debris. Penetrated by Slug. Hvy. Assault Rifle destroyed. Knocked back. K-01 Serf collects debris. Cld. Ion Engine destroyed. Penetrated by Slug. K-01 Serf collects debris. Knocked back. Penetrated by Slug. R-06 Scavenger collects Imp. Treads. Penetrated by Slug. R-06 Scavenger collects Wheel. Map ----- +----------------------------------------------------+ | ?????????????????????????????????????????????????? | | ?????????????????????????????????????????????????? | | ?????????????????????????????????????????????????? | | ?????????????????????????????????????????????????? | | ?????????????????????????????????????????????????? | | ?????????????????????????????????????????????????? | | ?????????????????????????????????????????????????? | | ?????????????????????????????????????????????????? | | ?????????????????????????????????????????????????? | | ?????????????????????????????????????????????????? | | ?????????????????????????a ?????????????????????? | | ?????????????????????????rw #????????????????????? | | ????????????????????????? #????????????????????? | | ????????????????????????? #????????????????????? | | ????????????????????????? #????????????????????? | | ????????????????????????? #????????????????????? | | ????????????????????????# #????????????????????? | | ????????????????????????/ +????????????????????? | | ????????????????????????# #????????????????????? | | ????????????????????????# #????????????????????? | | ????????????????????????# #????????????????????? | | ????????????????????????# #????????????????????? | | ????????????????????????# #????????????????????? | | ????????????????????????# #????????????????????? | | ??????????????????????###H ###??????????????????? | | ??????????????????????# @ #??????????????????? | | ??????????????????????# k % #??????????????????? | | ??????????????????????# ak #??????????????????? | | ??????????????????????#%Y #??????????????????? | | ????????????????#######h % #??????????????????? | | ???????????# #??????????????????? | | ???????????# ??#### ##% %] ;#?????????????????? | | ???????????+ ?????# ##;;r ###; #???????????????? | | ???????????# #####+#### %#??# #???????????????? | | ???????????# # #?#!%%#??? #???????????????? | | ???????????# # ###%* #????#???????????????? | | ???????????# # !! ###% ##???????????????????? | | ???????????# # !! ## #???????????????????? | | ???????????# # ## * #???????????????????? | | ???????????# # + !%* #???????????????????? | | ???????????# ##+##+### [= #???????????????????? | | ??????????## % %#?# #???????????????????? | | ??????????#" #?### #"#???????????????????? | | ??????????#T #???? # #???????????????????? | | ??????????#" / #???? ###???????????????????? | | ??????????## #???? ?????????????????????? | | ???????????# #???? ?????????????????????? | | ???????????# #???? #????????????????????? | | ???????????# #### #???? #????????????????????? | | ???????????# #??# #???? #????????????????????? | +----------------------------------------------------+ Best States ------------- Heat Dissipation 35 Energy Generation 14 Energy Capacity 280 Matter Stores 300 Matter Capacity 300 Sight Range 16 Terrain Scan Density 10 Armor Coverage 300 Propulsion Shielding 33 Utility Shielding 33 Evasion (%) 44 Targeting Accuracy 6 Recoil Reduction 4 Item Schematics ----------------- None Robot Schematics ------------------ None Fabricated ------------ Nothing Alien Tech Used ----------------- None Achievements -------------- None Challenges ------------ None Game ------ Seed WeldingRelayDriver Manual? 0 Play Time 00:28:18 Cumulative 5.6 hours Start 2024.06.04 @ 18:39:59 End 2024.06.04 @ 19:05:29 Sessions 1 Manual Loads 0 Difficulty Rogue Special Mode None Game No. 17 Rogue 17 Adventurer 0 Explorer 0 Win Type - Total 0 Types 0/0/0/0/0/0/0/0/0 Lore% 3 Gallery% 11 Achievement% 8 Wizard Run 0 Options --------- Layout 0 ASCII 0 Keyboard 0 Movement Mouse Keybinds 0 Fullscreen 1 Font 18/SmallcapsGlow Map View 38x25 Zoom Use 100% Tactical HUD 0 Map Filters NONE Filters NONE Steam 1 RUN: df4d006b-373f-4bbc-9f81-fb268bd668c8